[Event "*** SCC Grand Prix: Titled Tuesday Blitz"]
[Site "Chess.com"]
[Date "2020.06.23"]
[Round "4"]
[White "jaskol95"]
[Black "Arman_Hakemi"]
[Result "0-1"]
[WhiteElo "2399"]
[BlackElo "2578"]
[TimeControl "180+1"]
[EndTime "10:41:24 PDT"]
[Termination "Arman_Hakemi won by resignation"]

1. d4 {[%clk 0:03:00.8]} 1... Nf6 {[%clk 0:02:59.5]} 2. c4 {[%clk 0:03:01.3]}
2... e6 {[%clk 0:02:59.2]} 3. Nf3 {[%clk 0:03:01.4]} 3... b6 {[%clk 0:02:58.8]}
4. g3 {[%clk 0:03:01.8]} 4... Ba6 {[%clk 0:02:59.1]} 5. Qc2 {[%clk 0:03:00.9]}
5... Bb4+ {[%clk 0:02:56.4]} 6. Bd2 {[%clk 0:02:58.7]} 6... Be7 {[%clk
0:02:56.9]} 7. Bg2 {[%clk 0:02:55.6]} 7... c6 {[%clk 0:02:56.3]} 8. O-O {[%clk
0:02:54.1]} 8... d5 {[%clk 0:02:56.3]} 9. b3 {[%clk 0:02:53.2]} 9... O-O {[%clk
0:02:55.7]} 10. Ne5 {[%clk 0:02:53]} 10... Qc8 {[%clk 0:02:54.6]} 11. Nc3 {[%clk
0:02:50.8]} 11... Nbd7 {[%clk 0:02:53.2]} 12. Bg5 {[%clk 0:02:45.1]} 12... h6
{[%clk 0:02:48.2]} 13. Nxd7 {[%clk 0:02:43.6]} 13... Qxd7 {[%clk 0:02:47.1]} 14.
Bxf6 {[%clk 0:02:33.9]} 14... Bxf6 {[%clk 0:02:48]} 15. cxd5 {[%clk 0:02:31.1]}
15... cxd5 {[%clk 0:02:47.4]} 16. Rfd1 {[%clk 0:02:28.5]} 16... Rac8 {[%clk
0:02:47]} 17. Rac1 {[%clk 0:02:23.5]} 17... Rc7 {[%clk 0:02:37.8]} 18. e3 {[%clk
0:02:18.7]} 18... Rfc8 {[%clk 0:02:36.7]} 19. Qd2 {[%clk 0:02:17.3]} 19... Be7
{[%clk 0:02:34.1]} 20. Ne2 {[%clk 0:02:09.6]} 20... Ba3 {[%clk 0:02:25.5]} 21.
Rxc7 {[%clk 0:02:05.6]} 21... Qxc7 {[%clk 0:02:26.4]} 22. Bf1 {[%clk 0:01:55]}
22... Qc2 {[%clk 0:02:23.7]} 23. Kg2 {[%clk 0:01:38.7]} 23... Qe4+ {[%clk
0:02:15]} 24. f3 {[%clk 0:01:30.2]} 24... Qg6 {[%clk 0:02:10.9]} 25. Nf4 {[%clk
0:01:14.6]} 25... Bxf1+ {[%clk 0:02:06.4]} 26. Kxf1 {[%clk 0:01:13.2]} 26... Qc2
{[%clk 0:02:00.2]} 27. Nd3 {[%clk 0:00:46.7]} 27... h5 {[%clk 0:01:23]} 28. Ke2
{[%clk 0:00:42.5]} 28... Qc7 {[%clk 0:01:21]} 29. Nf4 {[%clk 0:00:23.6]} 29...
g6 {[%clk 0:01:14.7]} 30. Qd3 {[%clk 0:00:20.6]} 30... Bb4 {[%clk 0:01:08.5]}
31. Nxg6 {[%clk 0:00:19.2]} 31... Qc2+ {[%clk 0:01:08.4]} 32. Qxc2 {[%clk
0:00:17.1]} 32... Rxc2+ {[%clk 0:01:09.3]} 33. Kd3 {[%clk 0:00:17.6]} 33... Rc3+
{[%clk 0:01:09.7]} 34. Kd2 {[%clk 0:00:17.4]} 34... fxg6 {[%clk 0:01:10.2]} 35.
a3 {[%clk 0:00:17.5]} 35... Ba5 {[%clk 0:00:54.3]} 36. b4 {[%clk 0:00:17.7]}
36... Rxa3 {[%clk 0:00:54.4]} 37. bxa5 {[%clk 0:00:18.2]} 37... Rxa5 {[%clk
0:00:55.3]} 38. Rc1 {[%clk 0:00:18.7]} 38... Kf7 {[%clk 0:00:54.5]} 39. Rc7+
{[%clk 0:00:18.4]} 39... Kf6 {[%clk 0:00:55.1]} 40. e4 {[%clk 0:00:19.1]} 40...
dxe4 {[%clk 0:00:51.5]} 41. fxe4 {[%clk 0:00:19.1]} 41... Ra2+ {[%clk
0:00:51.4]} 42. Ke3 {[%clk 0:00:19.6]} 42... a5 {[%clk 0:00:46]} 43. h4 {[%clk
0:00:18.7]} 43... g5 {[%clk 0:00:38]} 44. hxg5+ {[%clk 0:00:11.9]} 44... Kxg5
{[%clk 0:00:38.9]} 45. Rg7+ {[%clk 0:00:12.3]} 45... Kf6 {[%clk 0:00:38.5]} 46.
Rb7 {[%clk 0:00:12.3]} 46... Rb2 {[%clk 0:00:33.9]} 47. Kf4 {[%clk 0:00:12.5]}
47... a4 {[%clk 0:00:32.6]} 48. e5+ {[%clk 0:00:12.8]} 48... Kg6 {[%clk
0:00:29.4]} 49. Re7 {[%clk 0:00:12.9]} 49... a3 {[%clk 0:00:29.2]} 50. Rxe6+
{[%clk 0:00:13.2]} 50... Kf7 {[%clk 0:00:26.8]} 51. Rc6 {[%clk 0:00:13.4]} 51...
a2 {[%clk 0:00:24.6]} 52. Rc7+ {[%clk 0:00:12.7]} 52... Ke6 {[%clk 0:00:24.8]}
53. Ra7 {[%clk 0:00:13.4]} 53... Kd5 {[%clk 0:00:22.1]} 54. Rd7+ {[%clk
0:00:11.5]} 54... Kc4 {[%clk 0:00:21.9]} 55. Ra7 {[%clk 0:00:11.4]} 55... Kxd4
{[%clk 0:00:22.4]} 56. e6 {[%clk 0:00:11.7]} 56... Re2 {[%clk 0:00:14.5]} 57. e7
{[%clk 0:00:12.2]} 57... b5 {[%clk 0:00:14.7]} 58. e8=Q {[%clk 0:00:11.7]} 58...
Rxe8 {[%clk 0:00:14.5]} 59. Rxa2 {[%clk 0:00:12.3]} 59... b4 {[%clk 0:00:13.4]}
60. Ra5 {[%clk 0:00:12.3]} 60... Rf8+ {[%clk 0:00:12.7]} 61. Kg5 {[%clk
0:00:11.9]} 61... Rg8+ {[%clk 0:00:12.9]} 62. Kh4 {[%clk 0:00:11.5]} 62... b3
{[%clk 0:00:11.2]} 63. Rb5 {[%clk 0:00:07.9]} 63... Kc3 {[%clk 0:00:10.7]} 64.
Rxh5 {[%clk 0:00:06.6]} 64... Rb8 {[%clk 0:00:09.8]} 65. Rc5+ {[%clk 0:00:07.2]}
65... Kd2 {[%clk 0:00:10]} 66. Rd5+ {[%clk 0:00:07.5]} 66... Ke3 {[%clk
0:00:08.7]} 67. Re5+ {[%clk 0:00:07.7]} 67... Kd4 {[%clk 0:00:08.3]} 68. Re1
{[%clk 0:00:07.3]} 68... b2 {[%clk 0:00:08.8]} 69. Rb1 {[%clk 0:00:07.5]} 69...
Kc3 {[%clk 0:00:09]} 70. g4 {[%clk 0:00:07.7]} 70... Kc2 {[%clk 0:00:09.6]} 71.
Rxb2+ {[%clk 0:00:07.7]} 71... Kxb2 {[%clk 0:00:09.3]} 72. g5 {[%clk 0:00:08]}
72... Kc3 {[%clk 0:00:09.9]} 73. g6 {[%clk 0:00:08]} 73... Kd4 {[%clk
0:00:10.3]} 74. Kg5 {[%clk 0:00:08.4]} 74... Ke5 {[%clk 0:00:10.3]} 75. g7
{[%clk 0:00:09]} 75... Rg8 {[%clk 0:00:06.6]} 76. Kg6 {[%clk 0:00:09.4]} 76...
Ke6 {[%clk 0:00:07.2]} 77. Kh6 {[%clk 0:00:09.5]} 77... Kf7 {[%clk 0:00:07.4]}
78. Kh7 {[%clk 0:00:10.4]} 78... Rxg7+ {[%clk 0:00:07.9]} 79. Kh8 {[%clk
0:00:11.3]} 79... Rg1 {[%clk 0:00:07.9]} 0-1

[Event "*** SCC Grand Prix: Titled Tuesday Blitz"]
[Site "Chess.com"]
[Date "2020.06.23"]
[Round "4"]
[White "BillieKimbah"]
[Black "Zurability"]
[Result "1-0"]
[WhiteElo "2859"]
[BlackElo "2682"]
[TimeControl "180+1"]
[EndTime "10:41:28 PDT"]
[Termination "BillieKimbah won on time"]

1. d4 {[%clk 0:03:00.9]} 1... Nf6 {[%clk 0:02:52.9]} 2. Nf3 {[%clk 0:03:00.9]}
2... e6 {[%clk 0:02:50]} 3. Bg5 {[%clk 0:03:00.5]} 3... d5 {[%clk 0:02:47.3]} 4.
e3 {[%clk 0:03:00.2]} 4... Be7 {[%clk 0:02:42.1]} 5. Nbd2 {[%clk 0:02:59.9]}
5... b6 {[%clk 0:02:40.8]} 6. c3 {[%clk 0:02:58.8]} 6... Bb7 {[%clk 0:02:41.1]}
7. Bd3 {[%clk 0:02:57.8]} 7... Nbd7 {[%clk 0:02:36]} 8. Qe2 {[%clk 0:02:31.5]}
8... Ne4 {[%clk 0:02:27.1]} 9. Bxe7 {[%clk 0:02:13.4]} 9... Qxe7 {[%clk
0:02:28]} 10. O-O {[%clk 0:02:13.4]} 10... O-O {[%clk 0:02:24.5]} 11. Ne5 {[%clk
0:02:13.3]} 11... Nxe5 {[%clk 0:02:17.3]} 12. dxe5 {[%clk 0:02:14.2]} 12... Nc5
{[%clk 0:02:13.6]} 13. f4 {[%clk 0:01:59.7]} 13... Nxd3 {[%clk 0:02:09.8]} 14.
Qxd3 {[%clk 0:02:00.6]} 14... f6 {[%clk 0:02:02.9]} 15. Nf3 {[%clk 0:01:59.2]}
15... f5 {[%clk 0:01:37.9]} 16. h3 {[%clk 0:01:35.8]} 16... c5 {[%clk
0:01:32.3]} 17. Kh2 {[%clk 0:01:33.3]} 17... Rad8 {[%clk 0:01:31]} 18. Rf2
{[%clk 0:01:31.1]} 18... Rd7 {[%clk 0:01:20.5]} 19. Rd1 {[%clk 0:01:29.6]} 19...
h6 {[%clk 0:01:14.4]} 20. Rg1 {[%clk 0:01:15.2]} 20... Qd8 {[%clk 0:00:57.3]}
21. Rd1 {[%clk 0:00:48.3]} 21... Qa8 {[%clk 0:00:46.6]} 22. Nh4 {[%clk
0:00:43.7]} 22... Qe8 {[%clk 0:00:41.2]} 23. Nf3 {[%clk 0:00:42.7]} 23... Qh5
{[%clk 0:00:39.6]} 24. b4 {[%clk 0:00:41.5]} 24... Rc8 {[%clk 0:00:28.5]} 25.
bxc5 {[%clk 0:00:39.8]} 25... bxc5 {[%clk 0:00:28.9]} 26. Rb1 {[%clk 0:00:38.2]}
26... Qf7 {[%clk 0:00:23.3]} 27. Rbb2 {[%clk 0:00:35.3]} 27... Qe7 {[%clk
0:00:15]} 28. Qb1 {[%clk 0:00:35.2]} 28... d4 {[%clk 0:00:13.6]} 29. exd4 {[%clk
0:00:27]} 29... Be4 {[%clk 0:00:13.7]} 30. Qe1 {[%clk 0:00:20.1]} 30... Bxf3
{[%clk 0:00:11.3]} 31. Rxf3 {[%clk 0:00:21]} 31... cxd4 {[%clk 0:00:11.9]} 32.
cxd4 {[%clk 0:00:20.6]} 32... Rxd4 {[%clk 0:00:12.6]} 33. Qg3 {[%clk 0:00:18.7]}
33... Kh7 {[%clk 0:00:11.7]} 34. Rfb3 {[%clk 0:00:18.6]} 34... Rd7 {[%clk
0:00:10.4]} 35. a4 {[%clk 0:00:15.6]} 35... Rc4 {[%clk 0:00:09.9]} 36. a5 {[%clk
0:00:15.6]} 36... Ra4 {[%clk 0:00:09.9]} 37. h4 {[%clk 0:00:12.2]} 37... Rxa5
{[%clk 0:00:08.5]} 38. Rb8 {[%clk 0:00:12.3]} 38... Rad5 {[%clk 0:00:06.3]} 39.
h5 {[%clk 0:00:11.9]} 39... Qf7 {[%clk 0:00:06.8]} 40. Qg6+ {[%clk 0:00:09]}
40... Qxg6 {[%clk 0:00:06.6]} 41. hxg6+ {[%clk 0:00:09.9]} 41... Kxg6 {[%clk
0:00:06.6]} 42. Re8 {[%clk 0:00:10.4]} 42... Kf7 {[%clk 0:00:05.5]} 43. Rbb8
{[%clk 0:00:11]} 43... Re7 {[%clk 0:00:04.8]} 44. Rf8+ {[%clk 0:00:10.8]} 44...
Kg6 {[%clk 0:00:05.1]} 45. Ra8 {[%clk 0:00:10.7]} 45... Rd4 {[%clk 0:00:05.2]}
46. g3 {[%clk 0:00:11]} 46... Rd2+ {[%clk 0:00:04.6]} 47. Kh3 {[%clk 0:00:11.6]}
47... Kh5 {[%clk 0:00:05]} 48. Rg8 {[%clk 0:00:11.6]} 48... g5 {[%clk
0:00:04.9]} 49. fxg5 {[%clk 0:00:11.2]} 49... hxg5 {[%clk 0:00:05.8]} 50. Rh8+
{[%clk 0:00:10.4]} 50... Kg6 {[%clk 0:00:06.4]} 51. Rhg8+ {[%clk 0:00:07.1]}
51... Rg7 {[%clk 0:00:06.9]} 52. Rxg7+ {[%clk 0:00:07.3]} 52... Kxg7 {[%clk
0:00:07.8]} 53. Rxa7+ {[%clk 0:00:08.1]} 53... Kg6 {[%clk 0:00:08.2]} 54. g4
{[%clk 0:00:08.6]} 54... Rd3+ {[%clk 0:00:07.1]} 55. Kg2 {[%clk 0:00:08.9]}
55... f4 {[%clk 0:00:07.6]} 56. Re7 {[%clk 0:00:07.8]} 56... Rg3+ {[%clk
0:00:07.8]} 57. Kf2 {[%clk 0:00:08.3]} 57... Rxg4 {[%clk 0:00:08.4]} 58. Rxe6+
{[%clk 0:00:08.9]} 58... Kf5 {[%clk 0:00:09.1]} 59. Re8 {[%clk 0:00:09.6]} 59...
Rg3 {[%clk 0:00:09.6]} 60. e6 {[%clk 0:00:10.1]} 60... Re3 {[%clk 0:00:09.5]}
61. e7 {[%clk 0:00:09.9]} 61... Kf6 {[%clk 0:00:09.8]} 62. Rf8+ {[%clk
0:00:06.6]} 62... Kxe7 {[%clk 0:00:10.1]} 63. Rf5 {[%clk 0:00:07.3]} 63... Rg3
{[%clk 0:00:10.6]} 64. Kf1 {[%clk 0:00:05.8]} 64... Ke6 {[%clk 0:00:10.9]} 65.
Rf8 {[%clk 0:00:06.5]} 65... Re3 {[%clk 0:00:09.8]} 66. Kf2 {[%clk 0:00:06.9]}
66... Re5 {[%clk 0:00:09.9]} 67. Kf3 {[%clk 0:00:07.1]} 67... Ke7 {[%clk
0:00:09.7]} 68. Rg8 {[%clk 0:00:06.6]} 68... Re3+ {[%clk 0:00:09.6]} 69. Kg4
{[%clk 0:00:06.7]} 69... Rg3+ {[%clk 0:00:10.2]} 70. Kf5 {[%clk 0:00:07.2]}
70... f3 {[%clk 0:00:10.8]} 71. Ke4 {[%clk 0:00:07.4]} 71... g4 {[%clk
0:00:09.4]} 72. Ke3 {[%clk 0:00:06.7]} 72... Rg2 {[%clk 0:00:09.7]} 73. Rg5
{[%clk 0:00:07.1]} 73... Kf6 {[%clk 0:00:09.6]} 74. Rg8 {[%clk 0:00:07.7]} 74...
Kf5 {[%clk 0:00:09]} 75. Rf8+ {[%clk 0:00:07.9]} 75... Kg5 {[%clk 0:00:09.6]}
76. Rg8+ {[%clk 0:00:08.2]} 76... Kh4 {[%clk 0:00:09.9]} 77. Kf4 {[%clk
0:00:08.6]} 77... Kh5 {[%clk 0:00:09.5]} 78. Kf5 {[%clk 0:00:06.2]} 78... Kh6
{[%clk 0:00:08.4]} 79. Kf6 {[%clk 0:00:06.5]} 79... Kh7 {[%clk 0:00:08.5]} 80.
Rg7+ {[%clk 0:00:06.3]} 80... Kh8 {[%clk 0:00:08.7]} 81. Kg6 {[%clk 0:00:04.1]}
81... f2 {[%clk 0:00:07.8]} 82. Ra7 {[%clk 0:00:02.6]} 1-0

[Event "*** SCC Grand Prix: Titled Tuesday Blitz"]
[Site "Chess.com"]
[Date "2020.06.23"]
[Round "4"]
[White "Indianlad"]
[Black "SantoBlue"]
[Result "0-1"]
[WhiteElo "2962"]
[BlackElo "2802"]
[TimeControl "180+1"]
[EndTime "10:41:33 PDT"]
[Termination "SantoBlue won by checkmate"]

1. d4 {[%clk 0:03:00.9]} 1... d6 {[%clk 0:02:58.4]} 2. e4 {[%clk 0:03:00.8]}
2... Nf6 {[%clk 0:02:57.6]} 3. Nc3 {[%clk 0:03:01.1]} 3... e5 {[%clk 0:02:58]}
4. Nf3 {[%clk 0:03:01]} 4... Nbd7 {[%clk 0:02:58.2]} 5. Bc4 {[%clk 0:03:00.4]}
5... Be7 {[%clk 0:02:57]} 6. O-O {[%clk 0:03:00.3]} 6... O-O {[%clk 0:02:57.2]}
7. Re1 {[%clk 0:03:00.5]} 7... c6 {[%clk 0:02:57.4]} 8. a4 {[%clk 0:03:00.9]}
8... h6 {[%clk 0:02:57.3]} 9. b3 {[%clk 0:03:00.8]} 9... Re8 {[%clk 0:02:52.9]}
10. Bb2 {[%clk 0:02:59.3]} 10... Bf8 {[%clk 0:02:47.9]} 11. h3 {[%clk
0:02:58.5]} 11... Rb8 {[%clk 0:02:43]} 12. Bd3 {[%clk 0:02:54.9]} 12... exd4
{[%clk 0:02:41.1]} 13. Nxd4 {[%clk 0:02:53.5]} 13... Ne5 {[%clk 0:02:41.2]} 14.
Bf1 {[%clk 0:02:52]} 14... a5 {[%clk 0:02:18.9]} 15. Qd2 {[%clk 0:02:50.5]}
15... Ng6 {[%clk 0:01:58.2]} 16. Rad1 {[%clk 0:02:49]} 16... Bd7 {[%clk
0:01:42.7]} 17. g3 {[%clk 0:02:19.5]} 17... Qb6 {[%clk 0:01:39.3]} 18. Bg2
{[%clk 0:02:15.7]} 18... Rbd8 {[%clk 0:01:29.5]} 19. Kh2 {[%clk 0:02:14.2]}
19... Bc8 {[%clk 0:01:26.9]} 20. f4 {[%clk 0:02:11.8]} 20... Qc7 {[%clk
0:01:27.3]} 21. Nf3 {[%clk 0:01:41.2]} 21... d5 {[%clk 0:01:17.5]} 22. e5 {[%clk
0:01:41.2]} 22... Ne4 {[%clk 0:01:17.5]} 23. Qe3 {[%clk 0:01:28.6]} 23... Bc5
{[%clk 0:01:07.9]} 24. Nd4 {[%clk 0:01:28.9]} 24... Nxc3 {[%clk 0:01:03.5]} 25.
Bxc3 {[%clk 0:01:29.8]} 25... Qb6 {[%clk 0:00:45.7]} 26. Qd2 {[%clk 0:01:27]}
26... Bb4 {[%clk 0:00:43.8]} 27. Bxb4 {[%clk 0:01:27.5]} 27... axb4 {[%clk
0:00:43.3]} 28. Qd3 {[%clk 0:01:27.1]} 28... Ne7 {[%clk 0:00:39.4]} 29. e6
{[%clk 0:01:23.3]} 29... f6 {[%clk 0:00:34.9]} 30. f5 {[%clk 0:01:18.7]} 30...
Qc7 {[%clk 0:00:31.7]} 31. Qf3 {[%clk 0:01:16.1]} 31... b6 {[%clk 0:00:29.9]}
32. Qh5 {[%clk 0:01:14.9]} 32... Rf8 {[%clk 0:00:27]} 33. Rf1 {[%clk 0:01:15.4]}
33... c5 {[%clk 0:00:23.9]} 34. Nf3 {[%clk 0:01:11.5]} 34... d4 {[%clk
0:00:20.6]} 35. Nh4 {[%clk 0:01:08.1]} 35... Bb7 {[%clk 0:00:20.4]} 36. Ng6
{[%clk 0:00:58.5]} 36... Bxg2 {[%clk 0:00:19.8]} 37. Nxe7+ {[%clk 0:00:54.2]}
37... Qxe7 {[%clk 0:00:19.5]} 38. Kxg2 {[%clk 0:00:55.1]} 38... Rd5 {[%clk
0:00:19.2]} 39. Qf3 {[%clk 0:00:53.3]} 39... Rfd8 {[%clk 0:00:19.3]} 40. Rfe1
{[%clk 0:00:52.9]} 40... R8d6 {[%clk 0:00:17.4]} 41. g4 {[%clk 0:00:53]} 41...
Qe8 {[%clk 0:00:15.7]} 42. Re4 {[%clk 0:00:53.1]} 42... Rd8 {[%clk 0:00:14.4]}
43. Rd3 {[%clk 0:00:53.3]} 43... Kh7 {[%clk 0:00:14.4]} 44. h4 {[%clk
0:00:53.7]} 44... R5d6 {[%clk 0:00:10.3]} 45. Kg1 {[%clk 0:00:53.9]} 45... c4
{[%clk 0:00:09.2]} 46. bxc4 {[%clk 0:00:50]} 46... Qxa4 {[%clk 0:00:09.4]} 47.
g5 {[%clk 0:00:50.7]} 47... Qxc2 {[%clk 0:00:09.5]} 48. e7 {[%clk 0:00:50]}
48... Re8 {[%clk 0:00:08.9]} 49. gxh6 {[%clk 0:00:40]} 49... Qc1+ {[%clk
0:00:09]} 50. Kh2 {[%clk 0:00:35.4]} 50... Qxh6 {[%clk 0:00:09.9]} 51. Qg3
{[%clk 0:00:28]} 51... Rd7 {[%clk 0:00:09.6]} 52. Qe1 {[%clk 0:00:17.2]} 52...
Qh5 {[%clk 0:00:10]} 53. Rg3 {[%clk 0:00:09.8]} 53... d3 {[%clk 0:00:09.3]} 54.
Qd2 {[%clk 0:00:06.8]} 54... Rexe7 {[%clk 0:00:08.5]} 55. Rxe7 {[%clk
0:00:07.4]} 55... Rxe7 {[%clk 0:00:09.4]} 56. Qxd3 {[%clk 0:00:07.9]} 56... Re5
{[%clk 0:00:07.9]} 57. Kh3 {[%clk 0:00:05.1]} 57... Qxf5+ {[%clk 0:00:07.2]} 58.
Qxf5+ {[%clk 0:00:03.1]} 58... Rxf5 {[%clk 0:00:08.1]} 59. Rb3 {[%clk
0:00:03.7]} 59... Rh5 {[%clk 0:00:06.2]} 60. Rxb4 {[%clk 0:00:04.2]} 60... g5
{[%clk 0:00:06]} 61. Rxb6 {[%clk 0:00:04.6]} 61... Rxh4+ {[%clk 0:00:06.6]} 62.
Kg3 {[%clk 0:00:05.5]} 62... Kg6 {[%clk 0:00:07.5]} 63. c5 {[%clk 0:00:05.9]}
63... Rc4 {[%clk 0:00:07.6]} 64. Rc6 {[%clk 0:00:06.8]} 64... Kf5 {[%clk
0:00:06.6]} 65. Rc8 {[%clk 0:00:07.7]} 65... Rc3+ {[%clk 0:00:07.2]} 66. Kg2
{[%clk 0:00:08.2]} 66... Kg4 {[%clk 0:00:08.1]} 67. c6 {[%clk 0:00:08.9]} 67...
f5 {[%clk 0:00:08.7]} 68. c7 {[%clk 0:00:09.6]} 68... f4 {[%clk 0:00:09.2]} 69.
Kf2 {[%clk 0:00:10.2]} 69... Rc2+ {[%clk 0:00:09.5]} 70. Ke1 {[%clk 0:00:10.2]}
70... f3 {[%clk 0:00:10]} 71. Kd1 {[%clk 0:00:06.7]} 71... Rc6 {[%clk 0:00:10]}
72. Ke1 {[%clk 0:00:06.9]} 72... Kg3 {[%clk 0:00:08.8]} 73. Rg8 {[%clk
0:00:06.7]} 73... f2+ {[%clk 0:00:07.8]} 74. Ke2 {[%clk 0:00:06]} 74... Re6+
{[%clk 0:00:07.7]} 75. Kd2 {[%clk 0:00:06.5]} 75... f1=Q {[%clk 0:00:08]} 76.
Rxg5+ {[%clk 0:00:06.8]} 76... Kf4 {[%clk 0:00:07.2]} 77. c8=Q {[%clk
0:00:07.2]} 77... Qe2+ {[%clk 0:00:07.3]} 78. Kc3 {[%clk 0:00:07.7]} 78... Re3+
{[%clk 0:00:06.4]} 79. Kb4 {[%clk 0:00:08.1]} 79... Qb2+ {[%clk 0:00:06.2]} 80.
Ka5 {[%clk 0:00:08.6]} 80... Ra3# {[%clk 0:00:06.3]} 0-1

[Event "*** SCC Grand Prix: Titled Tuesday Blitz"]
[Site "Chess.com"]
[Date "2020.06.23"]
[Round "4"]
[White "abubakrtagelsir"]
[Black "AttilaTurzo"]
[Result "0-1"]
[WhiteElo "2330"]
[BlackElo "2494"]
[TimeControl "180+1"]
[EndTime "10:41:33 PDT"]
[Termination "AttilaTurzo won on time"]

1. c3 {[%clk 0:03:00.8]} 1... Nf6 {[%clk 0:02:58.8]} 2. d4 {[%clk 0:02:58.1]}
2... g6 {[%clk 0:02:59]} 3. g3 {[%clk 0:02:57.9]} 3... Bg7 {[%clk 0:02:54.9]} 4.
Bg2 {[%clk 0:02:52.5]} 4... d5 {[%clk 0:02:55.4]} 5. Nh3 {[%clk 0:02:51.9]} 5...
O-O {[%clk 0:02:55.1]} 6. O-O {[%clk 0:02:52]} 6... b6 {[%clk 0:02:47]} 7. Bg5
{[%clk 0:02:49.8]} 7... Bb7 {[%clk 0:02:46.1]} 8. Nd2 {[%clk 0:02:49.2]} 8... c5
{[%clk 0:02:46]} 9. Re1 {[%clk 0:02:43.8]} 9... Nbd7 {[%clk 0:02:45.3]} 10. a4
{[%clk 0:02:24.8]} 10... h6 {[%clk 0:02:36.9]} 11. Bxf6 {[%clk 0:02:18.6]} 11...
Nxf6 {[%clk 0:02:34.2]} 12. a5 {[%clk 0:02:17.7]} 12... Qc7 {[%clk 0:02:26.9]}
13. Nf4 {[%clk 0:02:11.6]} 13... e5 {[%clk 0:02:23.2]} 14. dxe5 {[%clk
0:02:08.4]} 14... Qxe5 {[%clk 0:02:24.1]} 15. axb6 {[%clk 0:01:56.9]} 15... axb6
{[%clk 0:02:23.4]} 16. Rxa8 {[%clk 0:01:52.2]} 16... Bxa8 {[%clk 0:02:22.4]} 17.
Qb3 {[%clk 0:01:49.2]} 17... Qd6 {[%clk 0:02:07.5]} 18. c4 {[%clk 0:01:43.8]}
18... d4 {[%clk 0:02:02.1]} 19. Bxa8 {[%clk 0:01:42.1]} 19... Rxa8 {[%clk
0:02:03]} 20. Qf3 {[%clk 0:01:40.7]} 20... Re8 {[%clk 0:01:46.3]} 21. Ra1 {[%clk
0:01:35.9]} 21... g5 {[%clk 0:01:32.6]} 22. Nd3 {[%clk 0:01:34.3]} 22... Qe6
{[%clk 0:01:29.7]} 23. Ra8 {[%clk 0:01:20.4]} 23... Rxa8 {[%clk 0:01:20.5]} 24.
Qxa8+ {[%clk 0:01:19]} 24... Kh7 {[%clk 0:01:21.3]} 25. Kf1 {[%clk 0:01:15.5]}
25... Qh3+ {[%clk 0:01:18.4]} 26. Kg1 {[%clk 0:01:14.9]} 26... Qe6 {[%clk
0:01:12.7]} 27. Kf1 {[%clk 0:01:14.3]} 27... Kg6 {[%clk 0:01:12]} 28. Qb8 {[%clk
0:01:05.7]} 28... Ng4 {[%clk 0:01:04.9]} 29. h3 {[%clk 0:00:56.5]} 29... Ne5
{[%clk 0:01:01.7]} 30. Kg2 {[%clk 0:00:48.7]} 30... Nd7 {[%clk 0:00:48.2]} 31.
Qb7 {[%clk 0:00:44]} 31... f5 {[%clk 0:00:45.1]} 32. Nf3 {[%clk 0:00:36.6]}
32... Bf6 {[%clk 0:00:42.5]} 33. Nc1 {[%clk 0:00:20]} 33... g4 {[%clk 0:00:38]}
34. hxg4 {[%clk 0:00:19.8]} 34... fxg4 {[%clk 0:00:38.9]} 35. Ng1 {[%clk
0:00:20.3]} 35... h5 {[%clk 0:00:34.9]} 36. Nd3 {[%clk 0:00:20.1]} 36... Bg5
{[%clk 0:00:31.1]} 37. f4 {[%clk 0:00:16.5]} 37... Bf6 {[%clk 0:00:22.9]} 38.
Qc7 {[%clk 0:00:13.7]} 38... h4 {[%clk 0:00:20.5]} 39. gxh4 {[%clk 0:00:12.6]}
39... Qf5 {[%clk 0:00:18.3]} 40. Qd6 {[%clk 0:00:11.1]} 40... Qe4+ {[%clk
0:00:17.1]} 41. Kf1 {[%clk 0:00:10.5]} 41... Qf5 {[%clk 0:00:15.4]} 42. Kg2
{[%clk 0:00:10]} 42... Kh5 {[%clk 0:00:15.1]} 43. Kf1 {[%clk 0:00:08.3]} 43...
Bxh4 {[%clk 0:00:15.1]} 44. Ne5 {[%clk 0:00:07.9]} 44... Nxe5 {[%clk 0:00:14.6]}
45. Qxe5 {[%clk 0:00:07.8]} 45... Qxe5 {[%clk 0:00:14.9]} 46. fxe5 {[%clk
0:00:08.7]} 46... Kg5 {[%clk 0:00:14.9]} 47. e3 {[%clk 0:00:08.6]} 47... dxe3
{[%clk 0:00:13]} 48. Ne2 {[%clk 0:00:08.9]} 48... Kf5 {[%clk 0:00:12.8]} 49. Nc3
{[%clk 0:00:09.8]} 49... Kxe5 {[%clk 0:00:12.8]} 50. Nd5 {[%clk 0:00:10.1]}
50... Bd8 {[%clk 0:00:10.4]} 51. Nxe3 {[%clk 0:00:09.8]} 51... Kd4 {[%clk
0:00:09.4]} 52. Nxg4 {[%clk 0:00:08.9]} 52... Kxc4 {[%clk 0:00:09.8]} 53. Ke2
{[%clk 0:00:09.8]} 53... Kb3 {[%clk 0:00:10.1]} 54. Ne5 {[%clk 0:00:08.9]} 54...
Kxb2 {[%clk 0:00:09.2]} 55. Kd3 {[%clk 0:00:09.8]} 55... Kb3 {[%clk 0:00:09.3]}
56. Nc6 {[%clk 0:00:09]} 56... Bc7 {[%clk 0:00:08.6]} 57. Na7 {[%clk 0:00:08.2]}
57... Kb4 {[%clk 0:00:07.8]} 58. Nc6+ {[%clk 0:00:08.1]} 58... Kb5 {[%clk
0:00:06.7]} 59. Ne7 {[%clk 0:00:08.2]} 59... c4+ {[%clk 0:00:05.7]} 60. Kc2
{[%clk 0:00:07.2]} 60... Be5 {[%clk 0:00:05.1]} 61. Nd5 {[%clk 0:00:05.6]} 61...
Kc5 {[%clk 0:00:05.2]} 62. Nc7 {[%clk 0:00:04]} 62... b5 {[%clk 0:00:05.4]} 63.
Ne6+ {[%clk 0:00:03.2]} 63... Kd5 {[%clk 0:00:05.5]} 64. Ng5 {[%clk 0:00:03.1]}
64... b4 {[%clk 0:00:05.8]} 65. Nf3 {[%clk 0:00:03.5]} 65... b3+ {[%clk
0:00:06.3]} 66. Kd2 {[%clk 0:00:03.8]} 66... Ke4 {[%clk 0:00:06]} 67. Ng5+
{[%clk 0:00:03.2]} 67... Kf5 {[%clk 0:00:06.3]} 68. Nf3 {[%clk 0:00:03.5]} 68...
Kf4 {[%clk 0:00:06.9]} 69. Ne1 {[%clk 0:00:03.3]} 69... Ke4 {[%clk 0:00:06.5]}
70. Ke2 {[%clk 0:00:01.3]} 70... c3 {[%clk 0:00:06.7]} 0-1